Cogmind - Beta 14 @@@ ROGUE MODE // 2024.08.14 @ 04:19:32 Player: Heclapar Result: Self-destructed Performance ------------- Evolutions (0) 0 Regions Visited (4) 800 Robots Destroyed (17) 85 Value Destroyed (416) 416 Prototype IDs (11) 220 Alien Tech Used (0) 0 Bonus (129) 129 TOTAL SCORE: 1650 Bonus ------- Follower Combat Kills 69 Registered with UFD 300 Friendly Fire -240 Cogmind --------- Core Integrity 54/250 Matter 274/300 Energy 100/100 System Corruption 0% Temperature Cool (75) Movement Walking (190) Ox1 Location -9/Scraptown Parts ------- > --- POWER (1) -------- (None) > --- PROPULSION (2) --- Carbon-fiber Leg > --- UTILITY (2) ------ Small Storage Unit Makeshift Light Armor Plating > --- WEAPON (2) ------- Heavy Assault Rifle Heavy Battle Rifle > --- INVENTORY (8) ---- Ion Engine Arachnoskeleton Heat Sink Beam Rifle Subdweller Beam Cannon Proton Missile Launcher Peak State ------------ > --- POWER ------------ Subdweller Power Source > --- PROPULSION ------- Aluminum Leg Carbon-fiber Leg > --- UTILITY ---------- Small Storage Unit Makeshift Light Armor Plating > --- WEAPON ----------- Barrage Gun Heavy Battle Rifle > --- INVENTORY -------- Ion Engine Arachnoskeleton Subdweller Beam Cannon Subdweller Beam Cannon Rocket Launcher [Rating: 20] Favorites ----------- Power Subdweller Power Source Engine Subdweller Power Source Propulsion Aluminum Leg Leg Aluminum Leg Wheel Subdweller Monowheel Utility Small Storage Unit Device Disposable Heat Sink Storage Small Storage Unit Protection Makeshift Light Armor Plating Weapon Light Assault Rifle Energy Cannon Subdweller Beam Cannon Ballistic Gun Light Assault Rifle Build | -11 -10 -10 -9 -9 ------- Run | Yrd Mat Sub Rec Scr Slots Evolved . | . . . . . Power . | . . . . . Propulsion . | . . . . . Utility . | . . . . . Weapon . | . . . . . Parts Attached 24 | . . 17 7 . Power 6 | . . 4 2 . Engine 6 | . . 4 2 . Core . | . . . . . Reactor . | . . . . . Propulsion 6 | . . 3 3 . Treads . | . . . . . Leg 4 | . . 2 2 . Wheel 2 | . . 1 1 . Hover . | . . . . . Flight . | . . . . . Utility 4 | . . 4 . . Device 2 | . . 2 . . Storage . | . . . . . Processor . | . . . . . Hackware . | . . . . . Protection 2 | . . 2 . . Artifact . | . . . . . Weapon 8 | . . 6 2 . Energy Gun . | . . . . . Energy Cannon 2 | . . 2 . . Ballistic Gun 6 | . . 4 2 . Ballistic Cannon . | . . . . . Launcher . | . . . . . Special Weapon . | . . . . . Impact Weapon . | . . . . . Slashing Weapon . | . . . . . Piercing Weapon . | . . . . . Special Melee Weapon . | . . . . . Unidentified Prototypes . | . . . . . Parts Lost 6 | . . 3 1 2 Power 2 | . . 1 . 1 Propulsion 3 | . . 2 . 1 Utility . | . . . . . Weapon 1 | . . . 1 . Highest Loss Streak 2 | . . 1 1 2 To Critical Strikes . | . . . . . Average Slot Usage (%) 93 | . 85 94 93 100 Engine 13 | . 14 13 14 14 Leg 22 | . 28 23 13 28 Wheel 3 | . . 3 11 . Device 2 | . . 5 . . Storage 14 | . 14 14 14 14 Protection 7 | . . 5 14 14 Energy Cannon 2 | . . 4 . . Ballistic Gun 24 | . 28 23 25 28 Peak Build Rating 20 | . 6 18 20 20 Average Rating 13 | . 6 12 18 19 On Entrance 10 | 6 6 6 17 19 Naked Turns . | . . . . . Heaviest Build 23 | 10 10 21 23 23 Greatest Support 25 | 20 20 20 25 25 Greatest Overweight (x) 6 | . . 6 6 . Average Overweight (x) . | . . . 1 . Largest Inventory Capacity 8 | . 8 8 8 8 Average Capacity 8 | . 8 8 8 8 Most Carried 8 | . 6 8 8 8 Average Carried 7 | . 6 7 7 7 Final Capacity 8 | 8 8 8 8 8 Final Carried 8 | 6 6 8 8 8 Class Distribution -------------------- 76% | Mutant 17% | Commander-Mutant 6% | Derelict-Mutant Dominant Class ---------------- Mutant | -10/Materials Mutant | -10/Subcaves Commander-Mutant | -9/Recycling Commander-Mutant | -9/Scraptown Resources | -11 -10 -10 -9 -9 ----------- Run | Yrd Mat Sub Rec Scr Matter Collected 797 | 200 . 263 334 . Remotely . | . . . . . Salvage Created 707 | . . 312 357 38 Parts 40 | . . 24 15 1 Haulers Intercepted . | . . . . . Recyclers Shooed 2 | . . . 2 . Parts Field Recycled . | . . . . . Retrieved Matter . | . . . . . Parts Self-Destructed 14 | . . 14 . . Prevented . | . . . . . Kills | -11 -10 -10 -9 -9 ------- Run | Yrd Mat Sub Rec Scr Combat Hostiles Destroyed 13 | . . 10 3 . Guns 11 | . . 8 3 . Cannons 2 | . . 2 . . Classes Destroyed 6 | . . 3 3 . Recycler 3 | . . . 3 . Swarmer 4 | . . 4 . . Grunt 3 | . . 1 1 1 Protector 1 | . . . 1 . Hunter 1 | . . . 1 . Subdweller 5 | . . 5 . . Best Kill Streak 4 | . . 4 3 . Combat Bots Only 4 | . . 4 3 . Max Kills in Single Turn 2 | . . 2 1 1 Gunslinging 1 | . . 1 . . Exploded . | . . . . . Melee . | . . . . . Uniques/NPCs Destroyed . | . . . . . Combat | -11 -10 -10 -9 -9 -------- Run | Yrd Mat Sub Rec Scr Hostile Shots Fired 170 | . . 132 11 27 Missed 69 | . . 57 4 8 Damage Taken 1277 | . . 788 39 450 Core 196 | . . 86 10 100 Absorbed by Shields 91 | . . . . 91 Core Remaining (%) 100 | 100 . . . . Volleys Fired 82 | . . 56 21 5 Largest 2 | . . 2 2 2 Hottest 105 | . . 105 61 56 Shots Fired 157 | . . 111 36 10 Gun 145 | . . 99 36 10 Cannon 12 | . . 12 . . Launcher . | . . . . . Special . | . . . . . Kinetic 145 | . . 99 36 10 Thermal 12 | . . 12 . . Explosive . | . . . . . Electromagnetic . | . . . . . Robot Hit Streak 13 | . . 13 6 2 Robot Miss Streak 5 | . . 5 4 3 Penetration Max . | . . . . . Secondary Targets 2 | . . 2 . . Max Gunslinging Chain 1 | . . 1 . . Shots Hit Robots 82 | . . 61 17 4 Core Hits 31 | . . 21 9 1 Critical Kills 1 | . . . . 1 Critical Parts Destroyed . | . . . . . Critical Strikes 2 | . . 1 . 1 Destroy 2 | . . 1 . 1 Melee Attacks . | . . . . . Impact . | . . . . . Slashing . | . . . . . Piercing . | . . . . . Sneak Attacks . | . . . . . Combat Hostiles . | . . . . . Follow-up Attacks . | . . . . . Damage Inflicted 1344 | . 3 892 338 111 Guns 1227 | . . 778 338 111 Cannons 114 | . . 114 . . Explosions . | . . . . . Melee . | . . . . . Ramming 3 | . 3 . . . Kinetic 1227 | . . 778 338 111 Thermal 114 | . . 114 . . Explosive . | . . . . . Electromagnetic . | . . . . . Impact . | . . . . . Slashing . | . . . . . Piercing . | . . . . . Highest Corruption . | . . . . . Average Corruption . | . . . . . Corruption Purged . | . . . . . Corruption Blocked . | . . . . . Overload Shots . | . . . . . Overflow Damage . | . . . . . Projectiles . | . . . . . Explosions . | . . . . . Melee . | . . . . . Knockbacks . | . . . . . Impact . | . . . . . Kinetic . | . . . . . Secondary . | . . . . . Self-Inflicted Damage . | . . . . . Shots . | . . . . . Rammed . | . . . . . Targets Rammed 1 | . 1 . . . Kicked 1 | . 1 . . . Crushed . | . . . . . Highest Temperature 67 | . . 26 45 67 Average Temperature 19 | . . 15 16 36 Received Heat Transfer 351 | . . 312 6 33 Siege Activations . | . . . . . Robots Corrupted . | . . . . . Combat Hostiles . | . . . . . Parts Fried . | . . . . . Impact Corruptions . | . . . . . Robots Melted . | . . . . . Combat Hostiles . | . . . . . Parts Melted . | . . . . . Heat Transferred 148 | . . 148 . . Parts Sabotaged . | . . . . . Parts Stolen . | . . . . . Parts Stripped . | . . . . . Power Chain Reactions . | . . . . . Alert | -11 -10 -10 -9 -9 ------- Run | Yrd Mat Sub Rec Scr Peak Influence 116 | . . . 116 . Initial 76 | . . . 76 . Average 34 | . . . 61 . Maximum Alert Level . | . . . . . Low Security (%) 100 | . 100 . 100 . Level 1 . | . . . . . Level 2 . | . . . . . Level 3 . | . . . . . Level 4 . | . . . . . Level 5 . | . . . . . High Security . | . . . . . Max Security . | . . . . . Squads Dispatched . | . . . . . Investigation . | . . . . . Extermination . | . . . . . Reinforcement . | . . . . . Assault . | . . . . . Garrison . | . . . . . Intercept . | . . . . . Searches Triggered . | . . . . . Construction Impeded . | . . . . . Haulers Reinforced . | . . . . . Active Scanning Responses . | . . . . . Cargo Convoy Interrupts . | . . . . . Stealth | -11 -10 -10 -9 -9 --------- Run | Yrd Mat Sub Rec Scr Distress Signals 1 | . . . 1 . Communications Jammed . | . . . . . Distress Signals . | . . . . . Times Spotted 25 | . . 13 4 8 Peak Tracking Total 8 | . 1 6 3 8 Tactical Retreats 4 | . . 4 . . Traps | -11 -10 -10 -9 -9 ------- Run | Yrd Mat Sub Rec Scr Traps Triggered . | . . . . . Indirectly . | . . . . . Trap Hack Attempts . | . . . . . Triggered . | . . . . . Disarmed . | . . . . . Reprogrammed . | . . . . . Reused . | . . . . . Traps Extracted . | . . . . . Installed . | . . . . . Triggered . | . . . . . Machines | -11 -10 -10 -9 -9 ---------- Run | Yrd Mat Sub Rec Scr Machines Disabled 5 | . . 2 1 2 Max in Single Turn 1 | . . 1 1 1 Machines Repaired . | . . . . . Machines Dismantled . | . . . . . Machines Sabotaged . | . . . . . Overloaded Fab Kills . | . . . . . Hacking | -11 -10 -10 -9 -9 --------- Run | Yrd Mat Sub Rec Scr Machines Accessed 5 | . . 2 . 3 Terminals . | . . . . . Fabricators . | . . . . . Repair Stations . | . . . . . Recycling Units . | . . . . . Scanalyzers . | . . . . . Garrison Access . | . . . . . Total Hacks 29 | . . 5 . 24 Successful 29 | . . 5 . 24 Failed . | . . . . . Catastrophic . | . . . . . Database Lockouts . | . . . . . Manual . | . . . . . Terminals . | . . . . . Fabricators . | . . . . . Repair Stations . | . . . . . Recycling Units . | . . . . . Scanalyzers . | . . . . . Garrison Access . | . . . . . Terminal Hacks 29 | . . 5 . 24 Record 28 | . . 4 . 24 Derelict Proto ID Bank 1 | . . 1 . . Fabricator Hacks . | . . . . . Repair Station Hacks . | . . . . . Recycling Unit Hacks . | . . . . . Scanalyzer . | . . . . . Garrison Access Hacks . | . . . . . Unauthorized Hacks . | . . . . . Terminals . | . . . . . Fabricators . | . . . . . Repair Stations . | . . . . . Recycling Units . | . . . . . Scanalyzers . | . . . . . Garrison Access . | . . . . . Data Cores Recovered . | . . . . . Used . | . . . . . Hacking Detections . | . . . . . Full Trace Events . | . . . . . Feedback Events . | . . . . . Feedback Blocked . | . . . . . Robot Schematics Acquired . | . . . . . Robots Built . | . . . . . Authchips . | . . . . . Time . | . . . . . Total Robot Build Rating . | . . . . . Part Schematics Acquired . | . . . . . Parts Built . | . . . . . Authchips . | . . . . . Time . | . . . . . Total Part Build Rating . | . . . . . Parts Repaired . | . . . . . Time . | . . . . . Parts Recycled . | . . . . . Recycled Matter . | . . . . . Retrieved Matter . | . . . . . Retrieved Components . | . . . . . Parts Scanalyzed . | . . . . . Part Schematics Acquired . | . . . . . Parts Damaged . | . . . . . Bothacking | -11 -10 -10 -9 -9 ------------ Run | Yrd Mat Sub Rec Scr Used RIF Installer . | . . . . . Robots Hacked . | . . . . . Non-combat . | . . . . . Combat . | . . . . . Robot Hacks Applied . | . . . . . Relay Couplers Released . | . . . . . Fabnet Peak Effective % . | . . . . . Robots Rewired 8 | . . . 8 . Allies Hacked . | . . . . . Hacks Repelled . | . . . . . Allies | -11 -10 -10 -9 -9 -------- Run | Yrd Mat Sub Rec Scr Total Allies 8 | . . . 8 . Largest Group 8 | . . . 8 7 Highest-Rated Group 158 | . . . 158 137 Highest-Rated Ally 34 | . . . 34 34 Total Orders . | . . . . . Ally Attacks 8 | . . . 1 7 Total Damage 136 | . . . 21 115 Kills 2 | . . . 1 1 Allies Corrupted . | . . . . . Allies Melted . | . . . . . Intel | -11 -10 -10 -9 -9 ------- Run | Yrd Mat Sub Rec Scr Robot Analysis Total . | . . . . . Derelict Logs Recovered 1 | . . 1 . . Drone Launches . | . . . . . Drone Recoveries . | . . . . . Exploration | -11 -10 -10 -9 -9 ------------- Run | Yrd Mat Sub Rec Scr Turns Passed 3766 | . 527 2160 670 409 Spaces Moved 1973 | 1 41 1267 342 322 Core 62 | . . 19 43 . Treads . | . . . . . Legs 1640 | 1 41 1101 175 322 Wheels 271 | . . 147 124 . Hover . | . . . . . Flight . | . . . . . Fastest Speed 110 | 120 120 110 115 120 Average Speed 143 | 120 120 149 147 120 Slowest Speed 350 | 120 120 350 350 120 Overloaded Moves . | . . . . . Propulsion Burnouts . | . . . . . Robots Hopped . | . . . . . Cave-ins Triggered . | . . . . . Exploration Rate (%) 36 | 2 13 72 63 33 Regions Visited 4 Branch Regions 3 Pre-discovered Areas . | . . . . . Known Exits Taken . | . . . . . Unknown Exits Taken 4 | 1 1 1 1 . Scrap Searched 3 | . . 3 . . Spaces Dug . | . . . . . Terrain Destroyed . | . . . . . Melee . | . . . . . Projectile . | . . . . . AOE . | . . . . . Terrain Rammed . | . . . . . Walls Destroyed . | . . . . . Machines Disabled . | . . . . . Actions | -11 -10 -10 -9 -9 --------- Run | Yrd Mat Sub Rec Scr Total 2764 | . 518 1437 474 335 Wait 592 | . 477 71 38 6 Move 1969 | . 40 1266 341 322 Hop . | . . . . . Pick Up 13 | . . 9 3 1 Fast Attach 11 | . . 8 3 . Attach 3 | . . 2 1 . Detach 2 | . . 2 . . Swap 10 | . . 7 3 . Drop 22 | . . 16 5 1 Fire 82 | . . 56 21 5 Melee . | . . . . . Ram . | . . . . . Kick 1 | . 1 . . . Crush . | . . . . . Escape Stasis . | . . . . . Rewire 59 | . . . 59 . Trap . | . . . . . Miscellaneous . | . . . . . Route ------- -11/Scrapyard -10/Materials -10/Subcaves (discovered 2 exits: [*Mat] / [*Rec]) -9/Recycling -9/Scraptown History --------- Turn | Location | Event 1 | -11/Scrapyard | Discovered new exit (range 0) 1 | -11/Scrapyard | Entered Materials 305 | -10/Materials | Build established: Mutant 509 | -10/Materials | Discovered new exit (range 6) 528 | -10/Materials | Entered Subcaves 537 | -10/Subcaves | Learned location of 1 exit from Materials 609 | -10/Subcaves | A swath of the cavern ceiling suddenly collapsed 651 | -10/Subcaves | A swath of the cavern ceiling suddenly collapsed 1161 | -10/Subcaves | Visited Clippyterm 1165 | -10/Subcaves | Learned Factory stockpile data 1223 | -10/Subcaves | Shifting Twisted Machinery released Mak. Light Armor Plating 1223 | -10/Subcaves | Shifting Twisted Machinery released Battle Rifle 1410 | -10/Subcaves | Visited 4L-MR0's lab 1451 | -10/Subcaves | Found Arachnoskeleton 1974 | -10/Subcaves | Discovered new exit (range 13) 2038 | -10/Subcaves | Ambushed by Subdwellers from Twisted Machinery 2626 | -10/Subcaves | Discovered new exit (range 13) 2688 | -10/Subcaves | Entered Recycling 3310 | -9/Recycling | Scanned before Scraplab entrance 3327 | -9/Recycling | Entered Scraplab 3339 | -9/Recycling | Discovered new exit (range 3) 3358 | -9/Recycling | Entered Scraptown 3358 | -9/Scraptown | Accompanied by 7 allies 3384 | -9/Scraptown | Build established: Commander-Mutant 3404 | -9/Scraptown | Visited Shadow of the Wyrm 3444 | -9/Scraptown | Visited TADAMA 3471 | -9/Scraptown | Visited UFD Registry 3471 | -9/Scraptown | Registered with UFD as "Boltmachine" 3488 | -9/Scraptown | Visited Cyclists 3499 | -9/Scraptown | Entered Cyclist Reading Room 3524 | -9/Scraptown | Visited Symbiants 3543 | -9/Scraptown | Visited Cave Peace 3756 | -9/Scraptown | Attacked by Scraptown defenders 3767 | -9/Scraptown | Self-destructed Last Messages --------------- 03759_ Siege Slug penetrates Machine. 03760_ Slug penetrates Machine. 03760_ Machine disabled. 03761_ Penetrated by Siege Slug. 03761_ Knocked back. 03761_ Penetrated by Siege Slug. 03761_ Machine disabled. 03762_ Penetrated by Bolt. 03762_ Aluminum Leg destroyed. 03763_ Slug penetrates UFD HQ Gate. 03763_ Penetrated by Siege Slug. 03763_ Siege Slug penetrates Wall. 03764_ Penetrated by Bolt. 03764_ Savior 2a destroyed. 03764_ Imp. Ion Engine destroyed. 03765_ SC-41I(j) heat spikes uncontrollably. 03767_ Commando 2b suffers critical hit (Burn). 03767_ Penetrated by Siege Slug. 03767_ Knocked back. 03767_ Penetrated by Bolt. Map ----- +----------------------------------------------------+ | ""#X "#???????????????????????????????? | | "#" "#???????????????????????????????? | | ? # #???????????????????????????????? | | ### ##### ##########?????????????????????????????? | | #?????????????????????????????? | | #?????????????????????????????? | | #?????????????????????????????? | | #?????????????????????????????? | | #?????????????????????????????? | | ##### #### #?????????????????????????????? | | ??? ?# #?????????????????????????????? | | ? ""# #?????????????????????????????? | | " ""# #?????????????????????????????? | | """# #??????????????"??????????????? | | " " " ""# #????????????? "??????????????? | | """ ""# ###????????? ""?????????????? | | ?""" ?# ""#"#?????? ""?????????????? | | ???? ?# """"#????? ""?????????????? | | ?????" ??# ""###????? ""?????????????? | | ??????"??# j ###??????" ""?????????????? | | ?????????# j#########" ""?????????????? | | ?????????# p ""?????????????? | | ?????????# %= h ""#????????????? | | ?????????# h ""#????????????? | | ?????????# % ""#????????????? | | ########## TT * @ ;;;;;????????? | | TT %* j """????????????? | | % """????????????? | | = ???????????? | | *%* ?????????? | | !!% ??????????? | | * #""""# ??????????? | | #?????" ??????????? | | #?????"" """ "???????????? | | ############ ### ####??????##### ###???????????? | | ?????# # #?????????????????????????????? | | ?????# # #?????????????????????????????? | | ?????# # #?????????????????????????????? | | ?????# # #?????????????????????????????? | | ?????# """"" # #?????????????????????????????? | | ?????# """" # #?????????????????????????????? | | ?????# """" # #?????????????????????????????? | | ?????# # #?????????????????????????????? | | ?????# # #?????????????????????????????? | | ?????#?#########? #?????????????????????????????? | | ????????????????? ???????????????????????????????? | | ?????????????????????????????????????????????????? | | ?????????????????????????????????????????????????? | | ?????????????????????????????????????????????????? | | ?????????????????????????????????????????????????? | +----------------------------------------------------+ Best States ------------- Heat Dissipation 25 Coolant Potential 50 Energy Generation 15 Energy Capacity 265 Matter Stores 300 Matter Capacity 300 Sight Range 16 Terrain Scan Density 10 Armor Coverage 100 Evasion (%) 55 Item Schematics ----------------- None Robot Schematics ------------------ None Fabricated ------------ Nothing Alien Tech Used ----------------- None Achievements -------------- None Challenges ------------ None Game ------ Seed RagnarokDamperStorage Manual? 0 Play Time 00:20:29 Cumulative 88.7 hours Start 2024.08.14 @ 03:59:46 End 2024.08.14 @ 04:19:32 Sessions 1 Manual Loads 0 Difficulty Rogue Special Mode None Game No. 106 Rogue 106 Adventurer 0 Explorer 0 Win Type - Total 0 Types 0/0/0/0/0/0/0/0/0 Lore% 45 Gallery% 55 Achievement% 53 Wizard Run 0 Options --------- Layout 1 ASCII 0 Keyboard 0 Movement Mouse Keybinds 0 Fullscreen 1 Font 32/SmallcapsGlow Map View 50x35 Zoom Use 0% Tactical HUD 1 Map Filters NONE Filters NONE Steam 1 RUN: cfbaad20-71ec-4b98-b62d-d6e73af741af